bitfinex-derivatives/quotes_SOLF0:USTF0_20250817
["timestamp","ask_amount","ask_price","bid_price","bid_amount"]
[1755465899830,4.08330006,191.28,191.26,2.8]
[1755465900031,2.83,191.34,191.26,2.8]
[1755465900333,2.83,191.32,191.26,2.8]
[1755465900527,4.08347022,191.31,191.26,2.8]
[1755465900732,2.83,191.29,191.26,2.8]
[1755465900930,4.08347022,191.28,191.26,2.8]
[1755465901127,2.83,191.28,191.26,2.8]
[1755465901633,4.08322052,191.27,191.26,2.8]
[1755465901830,6.91322052,191.27,191.26,2.8]
[1755465902134,4.08322052,191.27,191.24,2.8]
[1755465902329,2.83,191.25,191.24,2.8]
[1755465902929,2.83,191.24,191.23,2.8]
[1755465904033,6.91188416,191.24,191.23,2.8]
[1755465905834,2.83,191.24,191.23,2.8]
[1755465906535,6.91062486,191.24,191.23,2.8]
[1755465907130,2.83,191.23,191.21,2.8]
[1755465907632,2.83,191.22,191.2,2.8]
[1755465908136,2.83,191.29,191.2,2.8]
[1755465908334,2.83,191.27,191.2,2.8]
[1755465908532,2.83,191.25,191.18,2.8]
[1755465908731,2.83,191.23,191.18,2.8]
[1755465908936,2.83,191.21,191.19,2.8]
[1755465910335,2.83,191.2,191.16,486.71509571]
[1755465910836,2.83,191.2,191.17,2.8]
[1755465914735,2.83,191.19,191.17,2.8]
[1755465918641,2.44729571,191.29,191.17,8.0276]
[1755465918642,2.79,191.2,191.17,8.0276]
[1755465918840,2.79,191.24,191.2,2.8]
[1755465919036,2.79,191.23,191.21,2.8]
[1755465919437,2.79,191.31,191.23,2.8]
[1755465919636,4.07455604,191.3,191.23,2.8]
[1755465919836,2.79,191.28,191.23,2.8]
[1755465920145,2.79,191.26,191.23,2.8]
[1755465920840,2.79,191.25,191.23,2.8]
[1755465922441,5.84375388,191.33,191.23,2.8]
[1755465922641,2.79,191.26,191.25,2.44729571]
[1755465923236,2.79,191.26,191.25,5.24729571]
[1755465928457,2.79,191.26,191.25,2.44729571]
[1755465929456,2.79,191.26,191.25,5.24729571]
[1755465931857,6.86757579,191.26,191.25,5.24729571]
[1755465952259,6.86757579,191.26,191.25,4.3706709]
[1755465966068,6.95757579,191.26,191.25,1.5706709]
[1755465966273,6.95757579,191.26,191.25,4.4706709]
[1755465969775,4.07757579,191.26,191.25,4.4706709]
[1755465969974,6.95757579,191.26,191.25,4.4706709]
[1755465978082,6.95757579,191.26,191.25,1.5706709]
[1755465985094,4.07757579,191.26,191.21,1.5706709]
[1755465985382,8.53450532,191.25,191.2,3.03]
[1755465985683,2.97,191.23,191.19,1.5706709]
[1755465985884,4.07757579,191.22,191.2,3.03]
[1755465986084,7.04757579,191.21,191.2,3.03]
[1755465986976,7.04757579,191.21,191.19,1.5706709]
[1755465987182,4.10497063,191.2,191.19,4.6006709]
[1755465987381,7.07497063,191.2,191.19,4.6006709]
[1755465992087,2.97,191.2,191.19,4.6006709]
[1755465993592,7.07130642,191.2,191.19,4.6006709]
[1755465996293,7.07130642,191.2,191.17,4.6006709]
[1755465996493,7.07130642,191.2,191.15,127.72]
[1755465996494,7.07130642,191.19,191.18,3.03]
[1755465996692,4.10130642,191.19,191.18,4.6006709]
[1755465997289,2.97,191.26,191.19,3.03]
[1755465997495,2.97,191.26,191.25,4.6006709]
[1755465997690,7.07188476,191.26,191.25,4.6006709]
[1755465997891,4.10188476,191.26,191.25,4.6006709]
[1755465998093,7.07188476,191.26,191.25,4.6006709]
[1755465999388,4.10188476,191.26,191.25,1.5706709]
[1755465999595,2.97,191.29,191.26,3.03]
[1755465999790,2.97,191.29,191.28,4.6006709]
[1755466000301,2.97,191.29,191.28,3.03]
[1755466000491,2.97,191.29,191.21,2.45324375]
[1755466000696,2.97,191.29,191.23,3.03]
[1755466003702,2.97,191.29,191.22,3.03]
[1755466004601,2.97,191.27,191.2,3.03]
[1755466004904,2.97,191.25,191.2,3.03]
[1755466005093,2.97,191.25,191.19,3.03]
[1755466007702,2.45324375,191.28,191.19,3.03]
[1755466007703,3.03,191.23,191.19,3.03]
[1755466007899,3.03,191.23,191.2,2.89]
[1755466010297,3.03,191.23,191.15,2.45324375]
[1755466010496,3.03,191.23,191.21,2.89]
[1755466011693,4.07740057,191.22,191.16,2.89]
[1755466011893,3.03,191.2,191.16,2.89]
[1755466012099,4.07740057,191.19,191.16,2.89]
[1755466012301,3.03,191.2,191.16,2.89]
[1755466012603,4.076854,191.19,191.16,2.89]
[1755466012803,3.03,191.2,191.16,2.89]
[1755466013000,4.07700057,191.19,191.16,2.89]
[1755466013205,3.03,191.2,191.16,2.89]
[1755466013504,4.07678125,191.19,191.16,2.89]
[1755466013698,3.03,191.2,191.16,2.89]
[1755466013898,4.07642413,191.19,191.16,2.89]
[1755466014097,3.03,191.2,191.16,2.89]
[1755466014296,4.07626532,191.19,191.16,2.89]
[1755466014495,3.03,191.2,191.16,2.89]
[1755466014702,4.07626726,191.19,191.16,2.89]
[1755466014902,3.03,191.2,191.16,2.89]
[1755466015103,4.07626726,191.19,191.16,2.89]
[1755466015303,3.03,191.2,191.16,2.89]
[1755466015603,4.07616709,191.19,191.16,2.89]
[1755466015806,3.03,191.2,191.16,2.89]
[1755466017106,4.07460648,191.19,191.16,2.89]
[1755466017303,3.03,191.2,191.16,2.89]
[1755466017806,3.03,191.19,191.16,2.89]
[1755466018309,5.84375388,191.26,191.16,2.89]
[1755466018506,3.03,191.2,191.16,2.89]
[1755466018704,3.03,191.24,191.19,2.89]
[1755466018904,4.07309735,191.23,191.19,2.89]
[1755466019106,4.07309735,191.22,191.19,2.89]
[1755466019404,4.07309735,191.21,191.19,2.89]
[1755466019604,4.07309735,191.2,191.19,2.89]
[1755466021701,3.03,191.22,191.19,2.89]
[1755466021902,4.07502201,191.21,191.19,2.89]
[1755466022103,3.03,191.22,191.19,2.89]
[1755466022305,4.07504994,191.21,191.19,2.89]
[1755466022503,3.03,191.22,191.19,2.89]
[1755466022703,4.07517631,191.21,191.19,2.89]
[1755466022905,4.07517631,191.2,191.19,2.89]
[1755466023310,4.07530859,191.2,191.19,2.89]
[1755466023509,3.03,191.22,191.19,2.89]
[1755466023710,4.07504131,191.21,191.19,2.89]
[1755466024011,4.0746467,191.2,191.19,2.89]
[1755466025008,4.0746467,191.2,191.18,2.45324375]
[1755466025311,7.10464418,191.19,191.18,2.89]
[1755466025502,4.07464418,191.19,191.16,2.89]
[1755466025808,3.03,191.16,191.15,2.45324375]
[1755466026199,3.03,191.18,191.15,2.45324375]
[1755466026404,3.03,191.17,191.15,2.45324375]
[1755466026710,3.03,191.17,191.16,2.89]
[1755466032713,3.03,191.16,191.13,2.89]
[1755466034110,3.03,191.16,191.12,2.45324375]
[1755466034315,3.03,191.16,191.14,2.89]
[1755466035115,3.03,191.16,191.15,2.89]
[1755466035911,5.84375388,191.24,191.15,2.89]
[1755466036117,3.03,191.22,191.17,2.45324375]
[1755466036315,4.06655099,191.21,191.17,2.45324375]
[1755466036506,7.09655099,191.2,191.19,2.89]
[1755466039122,4.06655099,191.2,191.19,2.89]
[1755466039509,6.95655099,191.2,191.19,2.89]
[1755466041321,4.06655099,191.2,191.19,2.89]
[1755466042917,6.95655099,191.2,191.19,2.89]
[1755466045925,6.95655099,191.2,191.17,2.45324375]
[1755466045926,2.89,191.19,191.18,2.94]
[1755466046222,6.95655099,191.19,191.18,2.94]
[1755466047124,4.06655099,191.19,191.18,2.94]
[1755466047422,6.95655099,191.19,191.18,2.94]
[1755466048321,4.06655099,191.19,191.18,2.94]
[1755466048527,2.89,191.25,191.18,2.94]
[1755466048721,2.89,191.25,191.21,2.94]
[1755466049328,4.46732393,191.24,191.21,2.94]
[1755466049527,2.89,191.23,191.21,2.94]
[1755466049729,2.89,191.25,191.21,2.94]
[1755466049925,2.89,191.24,191.21,2.94]
[1755466051625,2.89,191.28,191.21,2.94]
[1755466051832,4.46701167,191.27,191.23,2.45324375]
[1755466052023,2.89,191.26,191.25,2.94]
[1755466052223,2.89,191.26,191.23,5.39324375]
[1755466052431,2.89,191.26,191.24,2.94]
[1755466053232,2.89,191.26,191.23,2.45324375]
[1755466053432,2.89,191.26,191.25,2.94]
[1755466056135,2.89,191.26,191.24,2.94]
[1755466058330,2.89,191.26,191.22,2.94]
[1755466060138,2.89,191.26,191.23,2.94]
[1755466060532,4.05055891,191.25,191.23,2.94]
[1755466060739,6.94055891,191.24,191.23,2.94]
[1755466061138,2.89,191.23,191.21,2.94]
[1755466061437,6.94055891,191.22,191.21,2.94]
[1755466062137,2.89,191.21,191.14,2.94]
[1755466062336,2.89,191.19,191.14,2.94]
[1755466062535,2.89,191.18,191.14,2.94]
[1755466062927,5.84375388,191.26,191.14,8.1683]
[1755466063131,2.89,191.2,191.15,2.94]
[1755466063332,6.93884362,191.19,191.15,2.94]
[1755466063531,2.89,191.19,191.15,2.94]
[1755466064444,2.89,191.18,191.15,2.94]
[1755466067340,5.84375388,191.26,191.15,2.94]
[1755466067540,2.89,191.19,191.15,2.94]
[1755466069037,4.04796859,191.18,191.08,2.87]
[1755466069344,2.88,191.16,191.12,2.87]
[1755466069538,2.88,191.23,191.15,5.228]
[1755466069736,2.88,191.21,191.16,2.87]
[1755466070044,2.88,191.19,191.16,2.87]
[1755466071444,4.04748875,191.18,191.16,2.87]
[1755466071640,5.84375388,191.25,191.16,2.87]
[1755466071641,2.88,191.17,191.16,2.87]
[1755466073146,5.84375388,191.25,191.16,2.87]
[1755466073448,2.88,191.19,191.16,2.87]
[1755466073647,2.88,191.25,191.18,2.87]
[1755466073850,2.88,191.23,191.18,2.87]
[1755466074044,2.88,191.21,191.17,2.45324375]
[1755466074245,2.88,191.19,191.18,2.87]
[1755466074441,6.92795654,191.19,191.18,2.87]
[1755466076146,2.88,191.19,191.18,2.87]
[1755466078048,5.84375388,191.27,191.18,2.87]
[1755466078253,8.71648065,191.3,191.21,2.87]
[1755466078254,2.88,191.25,191.21,2.87]
[1755466078454,2.88,191.23,191.22,2.87]
[1755466078656,6.92837733,191.23,191.22,2.87]
[1755466078856,2.88,191.22,191.2,5.32324375]
[1755466079055,6.92837733,191.21,191.2,5.32324375]
[1755466102277,6.92643227,191.21,191.2,4.44141402]
[1755466103078,4.04643227,191.21,191.2,4.44141402]
[1755466103678,7.07643227,191.21,191.2,4.44141402]
[1755466105486,7.07643227,191.21,191.2,1.57141402]
[1755466105979,7.07643227,191.21,191.2,4.57141402]
[1755466120086,7.07643227,191.21,191.2,1.57141402]
[1755466120288,7.07643227,191.21,191.2,4.57141402]
[1755466130792,4.04643227,191.21,191.2,4.57141402]
[1755466131194,6.98643227,191.21,191.2,4.57141402]
[1755466144900,4.04643227,191.21,191.2,4.57141402]
[1755466145305,6.98643227,191.21,191.2,4.57141402]
[1755466146905,2.94,191.24,191.21,2.99]
[1755466147110,5.84375388,191.3,191.24,2.99]
[1755466147314,5.84375388,191.3,191.23,1.57141402]
[1755466147315,4.45013,191.29,191.28,1.57141402]
[1755466147509,5.84375388,191.32,191.28,1.57141402]
[1755466147702,7.3861183,191.31,191.28,1.57141402]
[1755466147908,2.94,191.29,191.15,2.99]
[1755466148510,2.94,191.29,191.26,2.99]
[1755466149008,2.94,191.29,191.28,1.57141402]
[1755466151714,2.94,191.29,191.28,4.56141402]
[1755466158924,6.89523457,191.29,191.28,4.56141402]
[1755466160528,6.89440432,191.29,191.28,4.56141402]
[1755466165621,2.89,191.29,191.28,4.56141402]
[1755466171429,68.17683283,191.35,191.28,9.78601402]
[1755466171634,6.89171569,191.34,191.33,1.57141402]
[1755466171838,6.89171569,191.34,191.33,4.35141402]
[1755466179634,6.89171569,191.34,191.33,1.57141402]
[1755466179933,6.89171569,191.34,191.33,4.35141402]
[1755466187345,68.17683283,191.35,191.33,4.35141402]
[1755466187546,2.89,191.34,191.33,1.57141402]
[1755466187942,2.89,191.34,191.33,4.62141402]
[1755466188247,2.89,191.34,191.32,1.57141402]
[1755466188441,2.89,191.34,191.32,4.62141402]
[1755466188640,2.89,191.34,191.31,3.05]
[1755466190147,2.89,191.34,191.3,4.62141402]
[1755466191554,2.89,191.34,191.3,1.57141402]
[1755466191741,2.89,191.34,191.31,3.05]
[1755466193248,2.89,191.34,191.3,4.62141402]
[1755466193647,2.89,191.34,191.31,3.05]
[1755466195739,2.89,191.34,191.3,1.57141402]
[1755466195948,2.89,191.34,191.29,3.05]
[1755466199554,2.92,191.32,191.29,3.05]
[1755466199755,2.92,191.3,191.29,3.05]
[1755466199955,6.90634038,191.3,191.29,3.05]
[1755466201557,3.98634038,191.3,191.28,4.62141402]
[1755466201746,6.90634038,191.29,191.28,4.62141402]
[1755466203761,2.92,191.28,191.23,3.05]
[1755466203955,3.98634038,191.27,191.23,3.05]
[1755466204156,2.92,191.25,191.23,3.05]
[1755466208564,2.92,191.24,191.23,3.05]
[1755466210964,3.97763659,191.24,191.22,4.62141402]
[1755466211266,2.92,191.23,191.22,4.62141402]
[1755466212476,2.92,191.23,191.22,3.05]
[1755466215776,6.89247679,191.23,191.19,4.62141402]
[1755466215972,2.92,191.21,191.19,4.62141402]
[1755466216178,2.92,191.21,191.19,1.57141402]
[1755466216372,2.92,191.21,191.2,3.05]
[1755466217274,2.92,191.21,191.17,1.57141402]
[1755466217581,2.92,191.21,191.17,4.62141402]
[1755466217775,2.92,191.21,191.14,132.6482]
[1755466217981,3.96852767,191.2,191.16,2.78]
[1755466218171,2.99,191.21,191.16,2.78]
[1755466218886,2.99,191.19,191.16,2.78]
[1755466221584,2.99,191.19,191.15,1.57141402]
[1755466221585,2.99,191.19,191.15,2.78]
[1755466224181,2.99,191.19,191.12,1.57141402]
[1755466224388,1.57141402,191.18,191.13,2.78]
[1755466224590,2.99,191.17,191.12,1.57141402]
[1755466224887,2.99,191.17,191.14,2.78]
[1755466227392,2.99,191.17,191.1,1.57141402]
[1755466227592,2.99,191.17,191.13,2.78]
[1755466227986,1.57141402,191.16,191.08,1.57141402]
[1755466228188,2.99,191.13,191.07,1.57141402]
[1755466228386,2.99,191.13,191.09,2.78]
[1755466228788,2.99,191.13,191.07,1.57141402]
[1755466228990,2.99,191.13,191.07,2.78]
[1755466232197,2.99,191.11,191.06,2.78]
[1755466234493,3.93764417,191.1,191.01,2.78]
[1755466234695,2.99,191.09,191.01,2.78]
[1755466240303,3.92652261,191.08,191.01,2.78]
[1755466240503,2.99,191.07,191.01,2.78]
[1755466240800,2.99,191.07,191.01,8.0119]
[1755466240996,2.99,191.12,191.02,2.78]
[1755466241200,2.99,191.1,191.04,8.0111]
[1755466241402,2.99,191.1,191.04,2.78]
[1755466241600,2.99,191.12,191.04,2.78]
[1755466241996,2.99,191.12,191.05,5.2308]
[1755466242196,2.99,191.12,191.06,2.78]
[1755466242396,3.92783709,191.11,191.06,2.78]
[1755466242601,2.99,191.09,191.06,2.78]
[1755466244602,69.60878736,191.13,191.06,2.78]
[1755466244603,2.99,191.11,191.06,2.78]
[1755466245505,69.60878736,191.13,191.06,2.78]
[1755466245506,2.99,191.1,191.06,2.78]
[1755466248610,3.04,191.09,191.06,2.78]
[1755466249500,3.04,191.1,191.06,2.78]
[1755466249700,3.04,191.11,191.07,3.01]
[1755466249903,3.04,191.17,191.07,3.01]
[1755466250104,3.04,191.15,191.07,3.01]
[1755466250305,3.04,191.13,191.07,3.01]
[1755466251212,3.04,191.11,191.07,3.01]
[1755466252110,3.04,191.18,191.08,3.01]
[1755466252412,3.04,191.16,191.08,3.01]
[1755466252604,3.04,191.14,191.08,3.01]
[1755466252800,3.04,191.12,191.08,3.01]
[1755466253000,5.84375388,191.19,191.08,3.01]
[1755466253205,3.04,191.17,191.08,3.01]
[1755466253405,3.04,191.15,191.08,3.01]
[1755466253606,3.04,191.13,191.08,3.01]
[1755466253805,3.04,191.11,191.08,3.01]
[1755466255515,3.04,191.09,191.0,2.4598064]
[1755466255815,3.04,191.07,191.02,3.01]
[1755466256707,3.04,191.07,191.0,7.6919064]
[1755466256908,3.04,191.07,191.01,3.01]
[1755466257815,3.04,191.06,191.02,3.01]
[1755466260014,3.04,191.06,191.02,8.2417]
[1755466260212,3.04,191.12,191.03,3.01]
[1755466260405,3.04,191.1,191.07,3.01]
[1755466260610,3.04,191.11,191.07,3.01]
[1755466260915,3.04,191.16,191.07,3.01]
[1755466261214,3.04,191.14,191.07,3.01]
[1755466261415,3.95475254,191.13,191.07,3.01]
[1755466261605,3.95475254,191.12,191.07,3.01]
[1755466261810,3.04,191.1,191.07,3.01]
[1755466262717,3.04,191.09,191.07,3.01]
[1755466264717,3.04,191.09,191.0,2.4598064]
[1755466265020,3.04,191.07,191.01,3.01]
[1755466265206,3.96069557,191.06,191.01,5.2317]
[1755466265412,3.04,191.12,191.01,3.01]
[1755466265617,8.46917577,191.11,191.01,3.01]
[1755466265820,8.30356028,191.13,191.02,3.01]
[1755466265821,3.04,191.09,191.02,3.01]
[1755466266019,3.04,191.07,191.02,3.01]
[1755466266313,3.04,191.05,191.02,3.01]
[1755466267219,3.04,191.05,191.03,3.01]
[1755466268614,3.04,191.05,191.04,3.01]
[1755466268817,7.01115542,191.05,191.04,3.01]
[1755466280925,3.0,191.04,191.01,2.88]
[1755466281822,3.0,191.04,190.99,2.88]
[1755466282023,3.97783458,191.03,190.99,2.88]
[1755466282222,3.0,191.02,190.99,2.88]
[1755466284726,3.0,191.02,191.01,2.88]
[1755466286926,3.0,191.02,191.0,2.88]
[1755466288726,3.0,191.02,190.98,2.88]
[1755466288928,3.0,191.02,190.97,2.88]
[1755466296137,3.0,191.02,190.98,2.88]
[1755466296325,3.0,191.02,190.94,2.4598064]
[1755466296529,3.0,191.02,190.95,2.88]
[1755466296728,3.0,191.0,190.95,2.88]
[1755466296931,3.0,191.0,190.96,5.2332]
[1755466297134,3.0,190.99,190.97,2.88]
[1755466297737,2.4598064,191.07,190.96,5.2332]
[1755466297943,3.0,191.05,190.97,2.88]
[1755466298240,3.0,191.03,190.97,2.88]
[1755466298433,3.97721862,191.02,190.97,2.88]
[1755466298636,3.0,191.01,190.97,2.88]
[1755466299232,3.0,191.01,190.96,5.2332]
[1755466299440,3.0,191.06,190.98,2.88]
[1755466299632,3.0,191.04,190.98,2.88]
[1755466299826,3.0,191.02,190.98,2.88]
[1755466300027,3.0,191.0,190.98,2.88]
[1755466302844,2.4598064,191.07,190.95,5.2335]
[1755466303035,3.0,190.99,190.95,5.2335]
[1755466303436,3.0,190.99,190.95,2.88]
[1755466306345,3.0,190.99,190.98,4.45518792]
[1755466307040,3.0,190.99,190.98,2.88]
[1755466307244,3.0,190.99,190.98,4.45518792]
[1755466307840,3.0,190.99,190.92,127.24]
[1755466308039,3.0,190.99,190.93,2.98]
[1755466308241,3.0,190.99,190.96,4.55518792]
[1755466309346,3.0,190.99,190.97,2.98]
[1755466312650,3.0,190.99,190.98,2.98]
[1755466312851,6.98885132,190.99,190.98,2.98]
[1755466315552,2.84420127,191.0,190.98,4.55518792]
[1755466315752,2.84420127,191.0,190.99,2.98]
[1755466316051,6.83398604,191.0,190.99,2.98]
[1755466316446,4.02398604,191.0,190.99,2.98]
[1755466317045,0.03420127,191.0,190.99,2.98]
[1755466317953,0.03420127,191.0,190.99,8.2125]
[1755466318153,2.81,191.08,190.99,2.98]
[1755466318356,11.30514477,191.07,190.93,2.98]
[1755466318547,3.99143013,191.06,190.93,2.98]
[1755466318747,3.99143013,191.05,190.93,2.98]
[1755466319051,3.99143013,191.04,190.93,2.98]
[1755466319348,2.81,191.06,191.01,5.2317]
[1755466319557,2.81,191.04,191.02,2.98]
[1755466319749,2.81,191.04,191.03,4.55518792]
[1755466320452,2.81,191.04,191.03,5.4392055]
[1755466321655,6.80148989,191.04,191.03,5.4392055]
[1755466322954,3.99148989,191.04,191.03,5.4392055]
[1755466323360,72.67877015,191.09,191.03,2.4592055]
[1755466323548,2.81,191.07,191.04,2.98]
[1755466324448,5.84375388,191.14,191.07,2.98]
[1755466324651,5.84375388,191.14,191.06,2.4592055]
[1755466324652,4.49240246,191.13,191.1,2.98]
[1755466324960,5.84375388,191.16,191.1,2.98]
[1755466325252,4.49280256,191.15,191.1,2.98]
[1755466325554,5.84375388,191.18,191.11,2.98]
[1755466325746,4.49122914,191.17,191.13,2.98]
[1755466325950,5.84375388,191.21,191.15,2.4592055]
[1755466326154,5.84375388,191.23,191.15,2.4592055]
[1755466326457,2.81,191.21,191.17,2.98]
[1755466327052,2.81,191.21,191.18,2.98]
[1755466330246,5.84375388,191.26,191.18,2.4592055]
[1755466330455,2.81,191.28,191.19,2.98]
[1755466330749,2.81,191.28,191.19,8.207]
[1755466330955,2.81,191.28,191.2,2.98]
[1755466331649,2.81,191.28,191.21,2.4592055]
[1755466331857,2.81,191.28,191.22,2.98]
[1755466332048,2.81,191.3,191.25,2.98]
[1755466332651,2.81,191.3,191.24,2.98]
[1755466332851,2.4592055,191.27,191.16,2.98]
[1755466333156,2.81,191.26,191.17,5.2273]
[1755466333454,2.81,191.26,191.18,2.98]
[1755466334159,2.81,191.23,191.13,2.98]
[1755466335754,2.81,191.21,191.13,2.98]
[1755466338858,2.94,191.23,191.16,2.77]
[1755466341050,2.94,191.23,191.16,7.9976]
[1755466341255,2.94,191.23,191.17,2.77]
[1755466342259,2.94,191.23,191.18,2.77]
[1755466342553,351.48,191.32,191.18,2.77]
[1755466342554,2.4592055,191.24,191.18,2.77]
[1755466342754,6.86258722,191.23,191.16,2.77]
[1755466342960,2.94,191.23,191.16,2.77]
[1755466346062,3.92200257,191.22,191.16,2.77]
[1755466346255,2.94,191.23,191.16,2.77]
[1755466346460,2.94,191.21,191.17,2.77]
[1755466347758,2.94,191.21,191.18,2.77]
[1755466348562,2.94,191.21,191.12,2.77]
[1755466348765,2.94,191.19,191.12,2.77]
[1755466349264,2.94,191.19,191.13,2.77]
[1755466354064,3.92757276,191.18,191.13,2.77]
[1755466354271,2.94,191.19,191.08,2.77]
[1755466354468,2.94,191.17,191.08,2.77]
[1755466354763,2.94,191.17,191.09,2.77]
[1755466355166,3.92905079,191.16,191.09,2.77]
[1755466355367,2.94,191.15,191.09,2.77]
[1755466357460,2.94,191.15,191.1,2.77]
[1755466357661,2.94,191.14,191.1,2.77]
[1755466357964,2.94,191.2,191.12,5.2288]
[1755466358168,6.87292448,191.19,191.13,2.77]
[1755466358363,3.93292448,191.18,191.13,2.77]
[1755466358563,6.87292448,191.17,191.13,2.77]
[1755466358757,2.94,191.17,191.13,2.77]
[1755466359161,3.93752627,191.16,191.13,2.77]
[1755466359366,2.94,191.17,191.13,2.77]
[1755466359669,3.9375249,191.16,191.13,2.77]
[1755466359865,2.94,191.17,191.13,2.77]
[1755466360068,3.9375249,191.16,191.13,2.77]
[1755466360266,2.94,191.17,191.13,2.77]
[1755466360562,3.94007844,191.16,191.13,2.77]
[1755466360872,2.94,191.17,191.13,2.77]
[1755466361065,3.93989279,191.16,191.14,2.77]
[1755466361267,2.94,191.19,191.14,2.77]
[1755466361463,3.94290572,191.18,191.14,2.77]
[1755466361659,3.94290572,191.17,191.15,2.77]
[1755466361862,8.30295938,191.24,191.15,2.77]
[1755466362062,2.94,191.18,191.15,2.77]
[1755466362265,3.94290065,191.17,191.15,2.77]
[1755466362470,3.94290065,191.16,191.15,2.77]
[1755466362766,3.94290065,191.19,191.15,2.77]
[1755466363071,3.94290065,191.18,191.15,2.77]
[1755466363270,3.94290065,191.17,191.15,2.77]
[1755466363468,3.94290065,191.16,191.15,2.77]
[1755466363869,3.94290065,191.18,191.15,2.77]
[1755466364070,3.94290065,191.17,191.15,2.77]
[1755466364268,3.94290065,191.16,191.15,2.77]
[1755466364869,3.94290065,191.18,191.15,2.77]
[1755466365067,3.94290065,191.17,191.15,2.77]
[1755466365374,3.94290065,191.16,191.15,2.77]
[1755466365675,2.94,191.21,191.15,2.77]
[1755466365974,3.94910988,191.2,191.17,2.77]
[1755466366275,3.94910988,191.19,191.17,2.77]
[1755466366570,2.94,191.21,191.17,2.77]
[1755466366772,3.95109631,191.2,191.17,2.77]
[1755466366973,3.95109631,191.19,191.17,2.77]
[1755466367171,3.95342013,191.18,191.17,2.77]
[1755466373076,5.84375388,191.25,191.17,2.77]
[1755466373288,2.85,191.19,191.17,2.77]
[1755466373474,2.85,191.19,191.16,2.84]
[1755466374576,2.85,191.2,191.16,2.84]
[1755466374773,3.95982712,191.19,191.16,2.84]
[1755466375082,2.85,191.2,191.16,2.84]
[1755466375276,6.80967718,191.19,191.16,2.84]
[1755466375476,2.85,191.19,191.16,2.84]
[1755466375678,5.84375388,191.26,191.16,2.84]
[1755466375888,2.85,191.2,191.16,2.84]
[1755466376077,3.95963071,191.19,191.16,2.84]
[1755466376274,5.84375388,191.26,191.16,2.84]
[1755466376478,2.85,191.19,191.16,2.84]
[1755466378084,3.96270079,191.18,191.16,2.84]
[1755466378382,2.85,191.2,191.16,2.84]
[1755466378579,3.96272404,191.19,191.16,2.84]
[1755466378776,3.96272404,191.18,191.16,2.84]
[1755466379083,2.85,191.24,191.17,2.84]
[1755466379284,2.85,191.22,191.17,2.84]
[1755466379478,3.96274223,191.21,191.17,2.84]
[1755466379682,3.96274223,191.2,191.17,2.84]
[1755466379875,3.96274223,191.19,191.17,2.84]
[1755466380075,2.85,191.21,191.17,2.84]